bitfinex-derivatives/quotes_SOLF0:USTF0_20260227
["timestamp","ask_amount","ask_price","bid_price","bid_amount"]
[1772165817506,7.40555687,88.269,88.196,7.51369907]
[1772165818411,7.40555687,88.263,88.196,7.51369907]
[1772165820005,10.1966,88.262,88.198,7.51369907]
[1772165820203,17.60215687,88.262,88.198,7.51369907]
[1772165820406,7.40555687,88.261,88.198,7.51369907]
[1772165820909,7.40555687,88.261,88.2,10.2037]
[1772165821518,7.40555687,88.261,88.2,7.51369907]
[1772165822605,7.40555687,88.261,88.189,10.2049]
[1772165822805,7.40555687,88.248,88.182,7.51369907]
[1772165823309,7.40555687,88.246,88.182,7.51369907]
[1772165823506,299.0,88.306,88.182,7.51369907]
[1772165823507,7.40555687,88.286,88.182,7.51369907]
[1772165823716,7.40555687,88.284,88.214,7.51369907]
[1772165824112,7.40555687,88.284,88.164,7.51369907]
[1772165824309,7.40555687,88.27,88.205,10.203]
[1772165825513,5.09945285,88.309,88.195,7.51369907]
[1772165825514,7.40555687,88.266,88.195,7.51369907]
[1772165825716,7.40555687,88.266,88.178,7.51369907]
[1772165826105,7.40555687,88.255,88.185,7.51369907]
[1772165826706,7.40555687,88.255,88.138,7.51369907]
[1772165827317,7.40555687,88.223,88.147,17.72349907]
[1772165827710,7.40555687,88.223,88.083,7.51369907]
[1772165827916,7.40555687,88.19,88.117,7.51369907]
[1772165828814,7.40555687,88.188,88.121,10.2128]
[1772165829206,7.40555687,88.186,88.121,10.2128]
[1772165829412,7.40555687,88.186,88.117,7.51369907]
[1772165830214,7.29267288,88.184,88.117,7.51369907]
[1772165831519,7.29267288,88.178,88.098,7.21037611]
[1772165832617,7.29267288,88.176,88.103,7.21037611]
[1772165833317,7.29267288,88.173,88.103,7.21037611]
[1772165834214,7.29267288,88.165,88.103,7.21037611]
[1772165835919,7.29267288,88.161,88.086,7.21037611]
[1772165836411,7.29267288,88.147,88.086,7.21037611]
[1772165837218,10.2101,88.146,88.086,7.21037611]
[1772165837420,7.29267288,88.145,88.086,7.21037611]
[1772165838520,7.29267288,88.14,88.086,7.21037611]
[1772165838721,7.29267288,88.14,88.028,433.30943115]
[1772165838722,7.29267288,88.14,88.068,7.21037611]
[1772165838919,7.29267288,88.125,88.051,7.21037611]
[1772165839417,7.29267288,88.125,88.029,7.21037611]
[1772165839616,7.29267288,88.108,88.029,7.21037611]
[1772165840812,7.29267288,88.108,88.033,7.21037611]
[1772165841627,7.29267288,88.175,88.037,7.21037611]
[1772165842024,158.7485,88.188,88.037,7.21037611]
[1772165842025,7.29267288,88.168,88.037,7.21037611]
[1772165842323,7.29267288,88.125,88.054,7.21037611]
[1772165842918,7.29267288,88.12,88.054,7.21037611]
[1772165843625,7.29267288,88.112,88.043,10.2218]
[1772165844722,7.29267288,88.105,88.048,7.21037611]
[1772165845220,5.10586186,88.169,88.028,433.30943115]
[1772165845221,7.29267288,88.084,88.028,433.30943115]
[1772165845422,7.29267288,88.084,88.009,7.21037611]
[1772165845928,7.29267288,88.062,87.949,7.21037611]
[1772165846127,7.29267288,88.087,87.967,7.21037611]
[1772165846327,7.29267288,88.084,88.015,7.21037611]
[1772165847325,7.29267288,88.08,88.015,7.21037611]
[1772165848528,7.29267288,88.08,88.016,10.225]
[1772165848529,10.2183,88.075,88.016,10.225]
[1772165849225,7.29267288,88.072,88.005,10.2263]
[1772165849428,7.29267288,88.072,87.98,7.21037611]
[1772165849827,10.2202,88.058,87.984,7.21037611]
[1772165850028,17.51287288,88.058,87.984,7.21037611]
[1772165850625,10.2191,88.068,88.007,7.21037611]
[1772165850825,7.29267288,88.067,88.007,7.21037611]
[1772165852132,7.29267288,88.067,88.008,10.226]
[1772165852630,7.29267288,88.067,88.009,7.21037611]
[1772165852830,10.2194,88.065,88.009,7.21037611]
[1772165853221,20.4252,88.124,88.009,7.21037611]
[1772165853222,7.29267288,88.068,88.009,7.21037611]
[1772165853830,7.29267288,88.068,87.954,7.21037611]
[1772165854533,7.29267288,88.046,87.985,7.21037611]
[1772165855133,10.2226,88.037,87.985,7.21037611]
[1772165855329,20.4316,88.096,87.985,7.21037611]
[1772165855533,7.29267288,88.095,87.985,7.21037611]
[1772165856434,17.51167288,88.068,88.005,10.2263]
[1772165856642,17.51167288,88.068,87.957,5.11091825]
[1772165856643,17.51167288,88.068,88.006,7.21037611]
[1772165857039,7.29267288,88.064,87.987,7.21037611]
[1772165857633,7.29267288,88.042,87.987,7.21037611]
[1772165858034,7.29267288,88.042,87.989,10.2282]
[1772165858234,7.29267288,88.042,87.987,7.21037611]
[1772165858541,7.29267288,88.042,87.936,7.21037611]
[1772165858931,10.2235,88.03,87.967,10.2307]
[1772165859131,7.54832562,88.029,87.914,7.59853444]
[1772165859641,7.54832562,88.029,87.918,7.59853444]
[1772165860143,7.20954948,88.022,87.942,7.35584411]
[1772165860740,5.11159461,88.069,87.942,7.35584411]
[1772165860741,17.43484948,88.015,87.948,10.2329]
[1772165861042,7.20954948,88.014,87.948,10.2329]
[1772165861741,7.20954948,88.014,87.955,10.2321]
[1772165862632,7.20954948,88.011,87.949,7.35584411]
[1772165863039,7.20954948,88.011,87.895,7.35584411]
[1772165863438,7.20954948,87.998,87.933,10.2346]
[1772165864939,7.20954948,87.986,87.926,7.35584411]
[1772165865138,7.20954948,88.003,87.926,7.35584411]
[1772165865542,7.20954948,88.0,87.94,10.2338]
[1772165865845,7.20954948,88.0,87.926,7.35584411]
[1772165866047,7.20954948,88.0,87.952,10.2325]
[1772165867840,7.20954948,88.032,87.953,7.35584411]
[1772165868236,7.20954948,88.021,87.957,10.2319]
[1772165868950,7.20954948,88.037,87.97,7.35584411]
[1772165869247,7.20954948,88.037,87.911,7.35584411]
[1772165869949,7.20954948,88.006,87.93,7.35584411]
[1772165870347,158.9782,88.06,87.93,7.35584411]
[1772165870348,7.20954948,87.999,87.93,7.35584411]
[1772165870748,7.20954948,87.99,87.932,10.2347]
[1772165870948,7.20954948,87.99,87.933,7.35584411]
[1772165871144,7.20954948,88.007,87.933,7.35584411]
[1772165871848,7.20954948,88.007,87.897,5.11366721]
[1772165871849,7.20954948,88.076,87.953,7.35584411]
[1772165872246,7.20954948,88.068,87.953,7.35584411]
[1772165872545,7.20954948,88.021,87.953,7.35584411]
[1772165874152,7.20954948,88.019,87.957,10.2318]
[1772165874653,7.20954948,88.019,87.962,10.2313]
[1772165874949,10.2244,88.022,87.963,7.35584411]
[1772165875254,7.20954948,88.021,87.963,7.35584411]
[1772165876147,5.1137799,88.069,87.913,34.12]
[1772165876148,7.20954948,88.019,87.952,10.2324]
[1772165876953,7.20954948,88.008,87.944,7.35584411]
[1772165877254,7.20954948,88.008,87.892,7.35584411]
[1772165877446,10.2279,87.992,87.928,7.35584411]
[1772165878053,10.2279,87.992,87.93,10.235]
[1772165878247,10.2279,87.992,87.93,17.59084411]
[1772165878551,7.20954948,88.001,87.931,7.35584411]
[1772165878751,7.20954948,88.001,87.936,10.2343]
[1772165878948,7.20954948,88.001,87.931,7.35584411]
[1772165879546,7.20954948,87.988,87.931,7.35584411]
[1772165880150,10.2288,87.984,87.931,7.35584411]
[1772165880546,7.20954948,87.983,87.918,10.2364]
[1772165880754,7.20954948,87.983,87.856,13.18060764]
[1772165880755,7.20954948,87.963,87.895,7.35584411]
[1772165881053,7.20954948,87.963,87.9,7.35584411]
[1772165882551,10.233,87.948,87.9,7.35584411]
[1772165883849,7.20954948,87.939,87.883,297.89874645]
[1772165884148,7.20954948,87.939,87.883,287.65824645]
[1772165884447,7.20954948,87.957,87.884,7.35584411]
[1772165885746,7.20954948,87.957,87.896,7.35584411]
[1772165886953,7.20954948,87.955,87.896,7.35584411]
[1772165887648,7.20954948,87.951,87.896,7.35584411]
[1772165888052,7.20954948,87.946,87.884,10.2404]
[1772165888252,7.20954948,87.946,87.885,7.35584411]
[1772165888453,7.20954948,87.963,87.885,7.35584411]
[1772165888953,7.20954948,88.031,87.913,7.35584411]
[1772165889250,7.20954948,88.018,87.913,7.35584411]
[1772165889453,7.20954948,87.981,87.927,10.2354]
[1772165891245,7.20954948,87.981,87.918,7.4156653]
[1772165892249,7.06822445,87.972,87.918,7.4156653]
[1772165892550,7.06822445,88.034,87.918,7.4156653]
[1772165894054,17.29462445,88.005,87.943,10.2335]
[1772165894556,17.29462445,88.005,87.943,17.6491653]
[1772165894853,7.06822445,88.004,87.943,17.6491653]
[1772165895450,17.29512445,88.0,87.943,7.4156653]
[1772165895648,7.06822445,87.999,87.943,7.4156653]
[1772165896045,7.06822445,87.995,87.923,7.4156653]
[1772165896250,7.06822445,87.995,87.925,10.2356]
[1772165896853,7.06822445,87.982,87.911,7.4156653]
[1772165897856,17.29822445,87.974,87.912,10.2371]
[1772165898056,17.29822445,87.974,87.912,17.6527653]
[1772165898650,10.2307,87.968,87.912,17.6527653]
[1772165899857,10.2317,87.96,87.912,7.4156653]
[1772165900061,17.29992445,87.96,87.912,7.4156653]
[1772165900659,10.232,87.957,87.912,7.4156653]
[1772165900853,7.06822445,87.956,87.903,10.2382]
[1772165901451,7.06822445,87.936,87.884,7.4156653]
[1772165901963,10.2346,87.935,87.876,10.2413]
[1772165902155,10.2346,87.935,87.833,20.4925]
[1772165902156,7.06822445,87.988,87.884,7.4156653]
[1772165902557,7.06822445,87.956,87.885,10.2402]
[1772165903160,7.06822445,87.956,87.885,17.6558653]
[1772165903564,7.06822445,87.948,87.885,7.4156653]
[1772165904167,7.06822445,87.945,87.885,7.4156653]
[1772165904366,7.06822445,87.945,87.869,7.4156653]
[1772165905859,7.06822445,87.945,87.884,7.4156653]
[1772165907568,7.06822445,87.945,87.886,7.4156653]
[1772165908068,10.2321,87.956,87.886,7.4156653]
[1772165908564,7.06822445,87.961,87.898,7.4156653]
[1772165908770,10.2306,87.969,87.898,7.4156653]
[1772165909067,7.06822445,87.979,87.898,7.4156653]
[1772165909463,17.29762445,87.979,87.912,7.4156653]
[1772165909669,7.06822445,87.995,87.912,7.4156653]
[1772165911064,17.29592445,87.994,87.932,17.6504653]
[1772165911768,7.06822445,87.988,87.932,17.6504653]
[1772165912769,7.06822445,87.988,87.939,10.234]
[1772165917369,7.06822445,88.041,87.982,7.4156653]
[1772165921270,7.28638553,88.039,87.982,7.4156653]
[1772165922467,7.28638553,88.053,87.984,7.38659585]
[1772165922971,7.28638553,88.053,87.987,7.38659585]
[1772165923769,7.28638553,88.039,87.973,10.23]
[1772165924366,7.28638553,88.037,87.976,7.38659585]
[1772165925377,7.28638553,88.037,87.989,10.2281]
[1772165925673,7.28638553,88.037,87.99,7.38659585]
[1772165926964,7.28638553,88.037,87.996,10.2273]
[1772165927569,10.2211,88.05,87.996,10.2273]
[1772165928469,7.28638553,88.052,87.999,7.38659585]
[1772165929573,7.28638553,88.067,88.002,7.38659585]
[1772165930877,7.28638553,88.065,88.002,7.38659585]
[1772165931876,10.2196,88.064,88.003,10.2265]
[1772165932076,7.28638553,88.063,88.003,10.2265]
[1772165932271,7.28638553,88.063,88.003,17.61309585]
[1772165932476,7.28638553,88.063,88.008,7.38659585]
[1772165932676,7.28638553,88.072,88.008,7.38659585]
[1772165933072,7.28638553,88.07,88.014,7.38659585]
[1772165933473,7.28638553,88.07,87.998,7.38659585]
[1772165933778,7.28638553,88.047,87.998,7.38659585]
[1772165934177,158.9026,88.102,87.978,7.38659585]
[1772165934178,7.28638553,88.037,87.978,7.38659585]
[1772165935382,7.28638553,88.037,87.988,7.38659585]
[1772165935574,7.28638553,88.054,87.988,7.38659585]
[1772165935976,7.28638553,88.037,87.988,7.38659585]
[1772165936882,7.28638553,88.032,87.97,7.38659585]
[1772165937686,7.28638553,88.016,87.954,17.61879585]
[1772165938881,158.9703,88.065,87.954,17.61879585]
[1772165938882,17.51218553,88.01,87.954,17.61879585]
[1772165939081,7.28638553,88.009,87.954,7.38659585]
[1772165939986,10.2263,88.005,87.954,7.38659585]
[1772165940182,7.28638553,88.058,87.958,7.38659585]
[1772165940891,10.221,88.052,87.997,7.38659585]
[1772165941088,7.28638553,88.051,87.997,7.38659585]
[1772165941591,7.28638553,88.051,87.999,7.38659585]
[1772165942782,17.50748553,88.051,87.999,7.38659585]
[1772165943488,17.50748553,88.051,87.944,20.4667]
[1772165943489,7.28638553,88.051,88.0,7.38659585]
[1772165944998,5.11216951,88.099,88.0,7.38659585]
[1772165944999,7.28638553,88.049,88.0,7.38659585]
[1772165945899,7.28638553,88.049,88.001,10.2267]
[1772165946094,7.28638553,88.049,88.002,7.38659585]
[1772165946294,7.28638553,88.099,88.002,7.38659585]
[1772165946905,10.2195,88.064,88.006,7.38659585]
[1772165948006,10.2195,88.064,88.011,7.38659585]
[1772165949501,7.28638553,88.071,88.013,7.38659585]
[1772165950804,7.41059537,88.093,88.025,7.32460663]
[1772165951198,7.41059537,88.093,88.01,7.32460663]
[1772165951402,5.11072963,88.119,88.012,7.32460663]
[1772165951403,10.219,88.068,88.012,7.32460663]
[1772165951908,7.41059537,88.088,88.024,7.32460663]
[1772165952308,7.41059537,88.088,87.974,7.32460663]
[1772165952507,7.41059537,88.073,88.003,7.32460663]
[1772165954006,10.2188,88.071,88.017,7.32460663]
[1772165955313,22.40174275,88.124,87.968,20.4611]
[1772165955314,7.41059537,88.063,88.001,7.32460663]
[1772165955612,7.41059537,88.099,88.001,7.32460663]
[1772165955810,7.41059537,88.081,88.021,7.32460663]
[1772165957013,7.41059537,88.075,88.023,10.2242]
[1772165957408,7.41059537,88.075,88.024,7.32460663]
[1772165959204,17.62909537,88.073,88.024,7.32460663]
[1772165959514,7.41059537,88.072,88.024,7.32460663]
[1772165960014,7.41059537,88.061,88.009,7.32460663]
[1772165961014,10.22,88.06,88.009,7.32460663]
[1772165962018,10.219,88.069,88.011,7.32460663]
[1772165962314,7.41059537,88.068,88.011,7.32460663]
[1772165963013,7.41059537,88.064,88.011,7.32460663]
[1772165963619,10.2199,88.061,88.011,7.32460663]
[1772165964314,17.63069537,88.059,88.011,7.32460663]
[1772165964618,7.41059537,88.058,87.991,7.32460663]
[1772165964813,10.2208,88.053,87.991,7.32460663]
[1772165965120,7.41059537,88.058,88.009,7.32460663]
[1772165966013,7.41059537,88.058,88.011,17.55020663]
[1772165967720,7.41059537,88.055,87.985,7.32460663]
[1772165968106,10.2213,88.049,87.985,7.32460663]
[1772165968712,7.41059537,88.055,88.009,7.32460663]
[1772165969016,7.41059537,88.055,87.992,7.32460663]
[1772165970018,7.41059537,88.046,87.981,17.55360663]
[1772165970517,7.41059537,88.046,87.982,7.32460663]
[1772165970717,7.41059537,88.046,87.93,34.12]
[1772165970718,7.41059537,88.04,87.984,7.32460663]
[1772165970917,7.41059537,88.04,87.961,7.32460663]
[1772165971508,7.41059537,88.037,87.977,10.2295]
[1772165971915,7.41059537,88.037,87.961,7.32460663]
[1772165972312,20.4363,88.076,87.917,20.473]
[1772165972313,7.41059537,88.014,87.963,7.32460663]
[1772165974019,7.41059537,88.014,87.969,7.32460663]
[1772165974422,7.41059537,88.014,87.951,7.32460663]
[1772165975820,7.41059537,88.002,87.951,7.32460663]
[1772165976022,7.41059537,88.002,87.922,7.32460663]
[1772165976410,7.41059537,88.017,87.941,7.32460663]
[1772165977216,7.41059537,88.015,87.96,10.2315]
[1772165977418,7.41059537,88.015,87.959,7.32460663]
[1772165977920,7.41059537,88.012,87.959,7.32460663]
[1772165978312,7.41059537,88.008,87.944,7.32460663]
[1772165979518,7.05240127,87.994,87.944,7.32460663]
[1772165981021,10.2265,88.004,87.944,7.32460663]
[1772165982022,10.2265,88.004,87.947,6.99227417]
[1772165982820,10.2262,88.007,87.949,6.99227417]
[1772165983920,10.2262,88.007,87.951,6.99227417]
[1772165984125,7.1368485,88.029,87.951,6.99227417]
[1772165984621,7.1368485,88.043,87.97,6.99227417]
[1772165985918,7.1368485,88.04,87.985,6.99227417]
[1772165987220,7.1368485,88.056,87.988,6.99227417]
[1772165987618,7.1368485,88.072,87.988,6.99227417]
[1772165987823,7.1368485,88.072,88.015,6.99227417]
[1772165988521,10.2187,88.071,88.015,6.99227417]
[1772165988727,17.3555485,88.071,88.015,6.99227417]
[1772165990231,7.1368485,88.068,87.999,6.99227417]
[1772165990724,10.2197,88.063,87.999,6.99227417]
[1772165990925,7.1368485,88.068,87.999,6.99227417]
[1772165991427,7.1368485,88.068,88.008,6.99227417]
[1772165991930,309.20450422,88.103,88.022,6.99227417]
[1772165991931,7.1368485,88.088,88.022,6.99227417]
[1772165993624,7.1368485,88.103,88.034,6.99227417]
[1772165994531,7.1368485,88.158,88.056,6.99227417]
[1772165994926,7.1368485,88.151,88.082,6.99227417]
[1772165995630,7.1368485,88.151,88.084,6.99227417]
[1772165997028,7.1368485,88.149,88.084,6.99227417]
[1772165997429,7.1368485,88.149,88.067,6.99227417]
[1772165997629,7.1368485,88.135,88.067,6.99227417]
[1772165999132,7.1368485,88.135,88.07,6.99227417]
[1772165999927,17.3482485,88.135,88.07,6.99227417]
[1772166000234,7.1368485,88.135,88.07,6.99227417]
[1772166000828,7.1368485,88.135,88.026,6.99227417]
[1772166001432,7.1368485,88.113,88.034,6.99227417]
[1772166002234,10.2161,88.094,88.034,6.99227417]
[1772166002634,7.1368485,88.113,88.034,6.99227417]
[1772166002833,10.2159,88.095,88.034,6.99227417]
[1772166003534,10.2147,88.105,88.036,6.99227417]
[1772166003927,158.7539,88.185,88.036,6.99227417]
[1772166003928,7.1368485,88.13,88.036,6.99227417]
[1772166004132,7.1368485,88.13,88.069,6.99227417]
[1772166004734,7.1368485,88.121,88.048,6.99227417]
[1772166005534,7.1368485,88.099,88.048,6.99227417]
[1772166006635,7.1368485,88.091,88.027,6.99227417]
[1772166006835,7.1368485,88.155,88.04,6.99227417]
[1772166007033,10.214,88.112,88.04,6.99227417]
[1772166007538,10.214,88.112,88.05,10.221]
[1772166007733,10.2146,88.106,88.051,6.99227417]
[1772166008235,10.2153,88.101,88.051,6.99227417]
[1772166008637,7.1368485,88.118,88.051,6.99227417]
[1772166008933,10.2141,88.111,88.053,6.99227417]
[1772166009132,7.1368485,88.118,88.053,6.99227417]
[1772166009432,26.31210319,88.159,88.062,6.99227417]
[1772166009433,10.2113,88.135,88.062,6.99227417]
[1772166009628,7.1368485,88.134,88.062,6.99227417]
[1772166010532,10.2121,88.129,88.065,6.71111263]
[1772166010732,6.90308068,88.129,88.065,6.71111263]
[1772166010938,6.90308068,88.129,88.04,6.71111263]
[1772166011638,6.90308068,88.129,88.048,6.71111263]
[1772166012234,10.2121,88.128,88.064,6.71111263]
[1772166012632,17.11518068,88.128,88.064,6.71111263]
[1772166013137,6.90308068,88.127,88.064,6.71111263]
[1772166013733,6.90308068,88.123,88.064,6.71111263]
[1772166014635,6.90308068,88.12,88.042,6.71111263]
[1772166015234,6.90308068,88.106,88.042,6.71111263]
[1772166016038,6.90308068,88.104,88.044,10.2218]
[1772166016237,6.90308068,88.104,88.042,6.71111263]
[1772166016640,10.2151,88.103,88.043,10.2218]
[1772166016841,6.90308068,88.102,88.043,10.2218]
[1772166018043,6.90308068,88.095,88.042,6.71111263]
[1772166018242,6.90308068,88.095,87.984,6.71111263]
[1772166019235,6.90308068,88.074,88.008,6.71111263]
[1772166019842,6.90308068,88.07,88.008,6.71111263]
[1772166020744,6.90308068,88.07,88.011,6.71111263]
[1772166021435,10.2204,88.056,88.011,6.71111263]
[1772166021639,6.90308068,88.07,88.011,6.71111263]
[1772166022448,6.90308068,88.07,88.013,6.71111263]
[1772166023348,6.90308068,88.057,87.998,10.2271]
[1772166023548,6.90308068,88.057,87.999,6.71111263]
[1772166024353,6.90308068,88.092,88.003,6.71111263]
[1772166024848,6.90308068,88.082,88.023,10.2242]
[1772166025259,6.90308068,88.082,88.018,6.71111263]
[1772166025456,17.12318068,88.059,88.004,16.93741263]
[1772166025756,6.90308068,88.059,88.005,6.71111263]
[1772166026054,10.2184,88.074,88.015,6.71111263]
[1772166026248,6.90308068,88.073,88.015,6.71111263]
[1772166026853,10.2203,88.058,88.015,6.71111263]
[1772166027047,10.2203,88.058,88.004,6.71111263]
[1772166027554,17.12428068,88.05,88.004,6.71111263]
[1772166027946,20.4285,88.11,88.015,16.93621263]
[1772166027947,6.90308068,88.076,88.015,16.93621263]
[1772166028448,10.2184,88.073,88.015,6.71111263]
[1772166028653,6.90308068,88.13,88.015,6.71111263]
[1772166029160,6.90308068,88.118,88.015,6.71111263]
[1772166029460,6.90308068,88.072,88.016,6.71111263]
[1772166029962,10.219,88.069,88.016,6.71111263]
[1772166030653,10.2201,88.06,88.016,6.71111263]
[1772166031060,6.90308068,88.059,87.999,6.71111263]
[1772166031258,6.90308068,88.051,87.975,6.71111263]
[1772166031460,6.90308068,88.051,87.991,6.71111263]
[1772166031957,10.2212,88.05,87.991,6.71111263]
[1772166032156,6.90308068,88.049,87.991,6.71111263]
[1772166032363,6.90308068,88.049,87.974,435.28703605]
[1772166032364,6.90308068,88.049,87.974,441.99814868]
[1772166032554,6.90308068,88.049,87.975,6.71111263]
[1772166032956,6.90308068,88.049,87.986,16.93961263]
[1772166033767,10.2224,88.039,87.986,6.71111263]
[1772166033968,6.90308068,88.038,87.986,6.71111263]
[1772166034870,10.2228,88.036,87.986,6.71111263]
[1772166035066,6.90308068,88.035,87.974,435.28703605]
[1772166036170,6.90308068,88.02,87.974,435.28703605]
[1772166037970,6.90308068,88.002,87.944,276.14058512]
[1772166038170,6.90308068,88.002,87.945,6.71111263]
[1772166038968,6.90308068,88.002,87.949,6.71111263]
[1772166039575,6.90308068,88.002,87.952,7.24123973]
[1772166039873,10.2249,88.018,87.952,7.24123973]
[1772166040374,10.2249,88.018,87.954,6.61209668]
[1772166040576,10.2255,88.012,87.954,6.61209668]
[1772166041568,16.9906494,88.003,87.954,6.61209668]
[1772166041767,6.7640494,88.002,87.954,6.61209668]
[1772166042363,6.7640494,88.021,87.954,6.61209668]
[1772166043469,5.11311742,88.059,87.954,6.61209668]
[1772166043470,6.7640494,88.014,87.954,6.61209668]
[1772166043872,6.7640494,87.99,87.935,6.61209668]
[1772166044973,10.2288,87.984,87.935,6.61209668]
[1772166046874,10.2299,87.974,87.908,6.61209668]
[1772166047268,16.9939494,87.974,87.908,6.61209668]
[1772166047473,10.2288,87.984,87.913,6.61209668]
[1772166047976,6.7640494,88.013,87.951,6.61209668]
[1772166048278,10.2245,88.021,87.951,6.61209668]
[1772166048773,10.2249,88.018,87.954,10.2322]
[1772166048982,6.7640494,88.017,87.955,6.61209668]
[1772166049283,20.4359,88.078,87.955,6.61209668]
[1772166049284,6.7640494,88.077,87.955,6.61209668]
[1772166049579,6.7640494,88.068,87.955,6.61209668]
[1772166049979,6.7640494,88.027,87.959,6.61209668]
[1772166051881,6.7640494,88.027,87.972,10.2301]
[1772166052380,6.7640494,88.027,87.959,6.61209668]
[1772166053876,16.9879494,88.026,87.964,6.61209668]
[1772166054077,6.7640494,88.025,87.964,6.61209668]
[1772166054277,6.7640494,88.025,87.948,6.61209668]
[1772166054875,10.2248,88.018,87.951,6.61209668]
[1772166055883,10.2248,88.018,87.968,6.61209668]
[1772166056675,10.226,88.008,87.968,6.61209668]
[1772166056980,10.226,88.008,87.949,6.61209668]
[1772166057680,6.7640494,88.007,87.949,6.61209668]
[1772166057985,10.2263,88.006,87.949,6.61209668]
[1772166058285,10.2263,88.006,87.948,10.2329]
[1772166058286,10.2263,88.006,87.951,6.61209668]
[1772166059184,6.7640494,87.984,87.936,6.61209668]
[1772166059489,6.7640494,88.038,87.936,6.61209668]
[1772166059985,6.7640494,88.007,87.936,6.61209668]
[1772166060684,6.7640494,87.991,87.936,6.61209668]
[1772166061377,6.7640494,87.989,87.936,6.61209668]
[1772166061784,6.7640494,87.989,87.914,6.61209668]
[1772166062184,6.7640494,87.975,87.914,6.61209668]
[1772166062479,6.7640494,87.975,87.899,6.61209668]
[1772166063980,6.7640494,87.963,87.9,10.2385]
[1772166064178,6.7640494,87.963,87.899,6.61209668]
[1772166065181,10.2315,87.961,87.899,6.61209668]
[1772166065384,6.7640494,87.96,87.899,6.61209668]
[1772166066787,6.7640494,87.95,87.855,6.61209668]
[1772166067785,6.7640494,87.932,87.866,6.61209668]
[1772166068883,10.2362,87.921,87.866,6.61209668]
[1772166069479,6.7640494,87.917,87.866,6.61209668]
[1772166070685,7.18863492,87.912,87.851,6.84860153]
[1772166071992,7.18863492,87.908,87.851,6.84860153]
[1772166072880,7.18863492,87.958,87.851,6.84860153]
[1772166073193,7.18863492,87.958,87.854,6.84860153]
[1772166074991,10.2352,87.93,87.857,6.84860153]
[1772166075191,17.42383492,87.93,87.857,6.84860153]
[1772166075490,7.18863492,87.929,87.857,6.84860153]
[1772166076991,7.18863492,87.929,87.84,6.84860153]
[1772166077189,7.18863492,87.964,87.84,6.84860153]
[1772166077991,10.2349,87.932,87.878,6.84860153]
[1772166080084,7.18863492,87.945,87.881,10.2407]
[1772166080085,10.2338,87.941,87.881,10.2407]
[1772166080286,7.18863492,87.961,87.878,6.84860153]
[1772166081894,10.2326,87.951,87.891,6.84860153]
[1772166082395,10.2326,87.951,87.897,6.84860153]
[1772166082594,7.18863492,87.961,87.897,6.84860153]
[1772166083696,10.2316,87.96,87.899,10.2387]
[1772166083898,7.18863492,87.959,87.9,6.84860153]
[1772166084491,7.18863492,87.957,87.902,10.2382]
[1772166084998,7.18863492,87.955,87.9,6.84860153]
[1772166085894,7.18863492,87.952,87.9,6.84860153]
[1772166086491,10.2326,87.951,87.9,6.84860153]
[1772166087093,17.42123492,87.951,87.9,6.84860153]
[1772166087900,10.233,87.948,87.9,6.84860153]
[1772166091505,10.2334,87.945,87.9,6.84860153]
[1772166091707,7.18863492,87.944,87.893,10.2393]
[1772166091895,7.18863492,87.944,87.894,6.84860153]
[1772166092907,10.2337,87.943,87.894,6.84860153]
[1772166094498,7.18863492,87.936,87.894,6.84860153]
[1772166095608,7.18863492,87.924,87.88,6.84860153]
[1772166095907,7.18863492,87.924,87.866,6.84860153]
[1772166096404,10.2368,87.916,87.866,6.84860153]
[1772166096603,7.18863492,87.924,87.868,6.84860153]
[1772166096808,20.4589,87.979,87.868,6.84860153]
[1772166096809,7.18863492,87.938,87.868,6.84860153]
[1772166097209,25.57674852,87.979,87.868,6.84860153]
[1772166097505,14.104226,88.006,87.837,434.0164147]
[1772166097506,7.18863492,88.023,87.961,6.84860153]
[1772166097711,10.53791541,88.077,87.961,6.84860153]
[1772166098004,5.11784852,88.079,87.996,6.84860153]
[1772166098312,11.51649997,88.091,87.996,6.84860153]
[1772166098503,10.219,88.069,87.965,10.2309]
[1772166098697,5.11832876,88.079,87.966,6.84860153]
[1772166098899,158.9697,88.065,87.951,6.84860153]
[1772166099095,158.9906,88.053,87.934,6.85210194]
[1772166099404,158.9906,88.053,87.868,159.3236]
[1772166099405,5.11683438,88.024,87.917,6.85210194]
[1772166099803,4.19866879,88.023,87.917,6.85210194]
[1772166100909,3.86588949,88.021,87.92,6.88861504]
[1772166102105,5.11683438,88.024,87.923,6.88861504]
[1772166102106,3.86745773,88.018,87.923,6.88861504]
[1772166103309,3.54024063,87.999,87.923,6.88861504]
[1772166104205,3.57178228,88.015,87.923,6.88861504]
[1772166104808,3.57178228,88.015,87.938,6.88861504]
[1772166106119,3.57178228,88.015,87.944,6.88861504]
[1772166106303,13.78329535,88.032,87.944,6.88861504]
[1772166106508,3.56009535,88.032,87.944,6.88861504]
[1772166107705,3.56009535,88.032,87.96,6.88861504]
[1772166108116,3.56143939,88.03,87.962,6.88861504]